Cogmind - Beta 13 @@@ ROGUE MODE // 2024.05.13 @ 20:51:33 Player: Bace Troncons Result: Destroyed by Piercing Trap Performance ------------- Evolutions (0) 0 Regions Visited (2) 400 Robots Destroyed (30) 150 Value Destroyed (599) 599 Prototype IDs (0) 0 Alien Tech Used (0) 0 Bonus (0) 0 TOTAL SCORE: 1149 Bonus ------- None Cogmind --------- Core Integrity 0/250 Matter 300/300 Energy 98/100 System Corruption 1% Temperature Cool (1) Movement Walking (120) Location -10/Subcaves Parts ------- > --- POWER (1) -------- (None) > --- PROPULSION (2) --- Aluminum Leg > --- UTILITY (2) ------ (None) > --- WEAPON (2) ------- Light Cannon Light Cannon > --- INVENTORY (5) ---- Assault Rifle Assault Rifle Light Assault Rifle Subdweller Shrapnel Launcher Hammer Peak State ------------ > --- POWER ------------ Light Ion Engine > --- PROPULSION ------- Aluminum Leg Aluminum Leg > --- UTILITY ---------- High-capacity Storage Unit Structural Scanner > --- WEAPON ----------- Assault Rifle Assault Rifle > --- INVENTORY -------- Light Treads Aluminum Leg Aluminum Leg Large Storage Unit Sensor Array Signal Interpreter Terrain Scanner Terrain Scanner Terrain Scan Processor Core Shielding Light Armor Plating Light Armor Plating Assault Rifle Assault Rifle Light Assault Rifle Light Cannon Light Cannon Grenade Launcher Hammer [Rating: 9] Favorites ----------- Power Light Ion Engine Engine Light Ion Engine Propulsion Aluminum Leg Treads Light Treads Leg Aluminum Leg Wheel Wheel Utility Structural Scanner Device Structural Scanner Storage Large Storage Unit Protection Scrap Shield Weapon Assault Rifle Ballistic Gun Assault Rifle Ballistic Cannon Light Cannon Impact Weapon Hammer Build | -11 -10 -10 ------- Run | Yrd Mat Sub Slots Evolved . | . . . Power . | . . . Propulsion . | . . . Utility . | . . . Weapon . | . . . Parts Attached 31 | 6 14 11 Power 5 | 1 3 1 Engine 5 | 1 3 1 Core . | . . . Reactor . | . . . Propulsion 7 | 2 4 1 Treads 4 | 2 2 . Leg 2 | . 2 . Wheel 1 | . . 1 Hover . | . . . Flight . | . . . Utility 5 | 1 3 1 Device 1 | . 1 . Storage 3 | 1 2 . Processor . | . . . Hackware . | . . . Protection 1 | . . 1 Artifact . | . . . Weapon 14 | 2 4 8 Energy Gun . | . . . Energy Cannon . | . . . Ballistic Gun 5 | 2 3 . Ballistic Cannon 5 | . . 5 Launcher . | . . . Special Weapon . | . . . Impact Weapon 4 | . 1 3 Slashing Weapon . | . . . Piercing Weapon . | . . . Special Melee Weapon . | . . . Unidentified Prototypes . | . . . Parts Lost 9 | . 5 4 Power 3 | . 2 1 Propulsion 4 | . 2 2 Utility 1 | . . 1 Weapon 1 | . 1 . Highest Loss Streak 2 | . 1 2 To Critical Strikes . | . . . Average Slot Usage (%) 83 | . 97 69 Engine 9 | . 13 5 Treads 7 | . 15 . Leg 14 | . 11 17 Wheel 1 | . . 3 Device 6 | . 13 . Storage 7 | . 14 . Protection 6 | . . 13 Ballistic Gun 14 | . 27 . Ballistic Cannon 8 | . . 17 Impact Weapon 4 | . . 9 Naked Turns . | . . . Heaviest Build 48 | 14 48 48 Greatest Support 40 | 40 40 20 Greatest Overweight (x) 2 | 2 2 2 Average Overweight (x) 1 | . . 1 Largest Inventory Capacity 20 | 8 20 20 Average Capacity 10 | 7 16 5 Most Carried 20 | 4 20 20 Average Carried 8 | 2 12 5 Final Capacity 20 | 8 20 5 Final Carried 20 | 4 20 5 Class Distribution -------------------- 100% | Mutant Dominant Class ---------------- Mutant | -10/Materials Mutant | -10/Subcaves Resources | -11 -10 -10 ----------- Run | Yrd Mat Sub Matter Collected 1108 | 172 605 331 Remotely . | . . . Salvage Created 844 | . 699 145 Parts 60 | . 48 12 Haulers Intercepted 2 | . 2 . Recyclers Shooed 1 | . 1 . Parts Field Recycled . | . . . Retrieved Matter . | . . . Parts Self-Destructed 5 | . . 5 Prevented . | . . . Kills | -11 -10 -10 ------- Run | Yrd Mat Sub Combat Hostiles Destroyed 23 | . 17 6 Guns 17 | . 17 . Cannons 6 | . . 6 Classes Destroyed 7 | . 6 1 Worker 1 | . 1 . Builder 2 | . 2 . Hauler 2 | . 2 . Watcher 2 | . 2 . Swarmer 11 | . 9 2 Grunt 8 | . 8 . Subdweller 4 | . . 4 Best Kill Streak 7 | . 7 2 Combat Bots Only 6 | . 6 2 Max Kills in Single Turn 1 | . 1 1 Gunslinging . | . . . Exploded . | . . . Melee . | . . . Uniques/NPCs Destroyed . | . . . Combat | -11 -10 -10 -------- Run | Yrd Mat Sub Hostile Shots Fired 167 | . 123 44 Missed 36 | . 23 13 Damage Taken 1671 | . 1058 613 Core 251 | . 168 83 Absorbed by Shields . | . . . Core Remaining (%) 100 | 100 . . Volleys Fired 93 | . 73 20 Largest 2 | . 2 2 Hottest 70 | . 40 70 Shots Fired 185 | . 145 40 Gun 145 | . 145 . Cannon 40 | . . 40 Launcher . | . . . Special . | . . . Kinetic 185 | . 145 40 Thermal . | . . . Explosive . | . . . Electromagnetic . | . . . Robot Hit Streak 9 | . 8 9 Robot Miss Streak 7 | . 7 5 Penetration Max . | . . . Secondary Targets . | . . . Shots Hit Robots 109 | . 85 24 Core Hits 47 | . 37 10 Critical Kills 1 | . 1 . Critical Parts Destroyed 1 | . 1 . Critical Strikes 2 | . 2 . Destroy 2 | . 2 . Melee Attacks 26 | . 1 25 Impact 26 | . 1 25 Slashing . | . . . Piercing . | . . . Sneak Attacks . | . . . Combat Hostiles . | . . . Follow-up Attacks . | . . . Damage Inflicted 1569 | . 1152 417 Guns 1138 | . 1138 . Cannons 417 | . . 417 Explosions . | . . . Melee . | . . . Ramming 14 | . 14 . Kinetic 1555 | . 1138 417 Thermal . | . . . Explosive . | . . . Electromagnetic . | . . . Impact . | . . . Slashing . | . . . Piercing . | . . . Highest Corruption 1 | . 1 1 Average Corruption 1 | . 1 1 Corruption Purged . | . . . Corruption Blocked . | . . . Effects 10 | . . 10 Message Errors 2 | . . 2 Matter Fused 5 | . . 5 Energy Discharges 1 | . . 1 Parts Rejected 1 | . . 1 Data Loss (minor) 1 | . . 1 Overload Shots . | . . . Overflow Damage . | . . . Projectiles . | . . . Explosions . | . . . Melee . | . . . Knockbacks 7 | . . 7 Impact . | . . . Kinetic 7 | . . 7 Secondary . | . . . Self-Inflicted Damage . | . . . Shots . | . . . Rammed 1 | . 1 . Targets Rammed 1 | . 1 . Kicked . | . . . Crushed . | . . . Highest Temperature 2 | . 2 . Average Temperature 1 | . 1 . Received Heat Transfer 252 | . 252 . Siege Activations . | . . . Robots Corrupted . | . . . Combat Hostiles . | . . . Parts Fried . | . . . Impact Corruptions . | . . . Robots Melted . | . . . Combat Hostiles . | . . . Parts Melted . | . . . Heat Transferred . | . . . Parts Sabotaged . | . . . Parts Stolen . | . . . Parts Stripped . | . . . Power Chain Reactions . | . . . Alert | -11 -10 -10 ------- Run | Yrd Mat Sub Peak Influence 239 | . 239 . Initial . | . . . Average 58 | . 61 . Maximum Alert Level 1 | . 1 . Low Security (%) 92 | 100 92 . Level 1 7 | . 7 . Level 2 . | . . . Level 3 . | . . . Level 4 . | . . . Level 5 . | . . . High Security . | . . . Max Security . | . . . Squads Dispatched 4 | . 4 . Investigation 2 | . 2 . Extermination . | . . . Reinforcement 2 | . 2 . Assault . | . . . Garrison . | . . . Intercept . | . . . Searches Triggered . | . . . Construction Impeded . | . . . Haulers Reinforced . | . . . Active Scanning Responses . | . . . Cargo Convoy Interrupts . | . . . Stealth | -11 -10 -10 --------- Run | Yrd Mat Sub Distress Signals 2 | . 2 . Communications Jammed . | . . . Distress Signals . | . . . Times Spotted 35 | . 29 6 Peak Tracking Total 5 | . 5 2 Tactical Retreats 1 | . 1 . Traps | -11 -10 -10 ------- Run | Yrd Mat Sub Traps Triggered 6 | . 4 2 Indirectly . | . . . Trap Hack Attempts . | . . . Triggered . | . . . Disarmed . | . . . Reprogrammed . | . . . Reused . | . . . Traps Extracted . | . . . Installed . | . . . Triggered . | . . . Machines | -11 -10 -10 ---------- Run | Yrd Mat Sub Machines Disabled 1 | . 1 . Max in Single Turn 1 | . 1 . Machines Repaired . | . . . Machines Dismantled . | . . . Machines Sabotaged . | . . . Overloaded Fab Kills . | . . . Hacking | -11 -10 -10 --------- Run | Yrd Mat Sub Machines Accessed 5 | . 5 . Terminals 5 | . 5 . Fabricators . | . . . Repair Stations . | . . . Recycling Units . | . . . Scanalyzers . | . . . Garrison Access . | . . . Total Hacks 17 | . 17 . Successful 8 | . 8 . Failed 9 | . 9 . Catastrophic . | . . . Database Lockouts . | . . . Manual . | . . . Terminals 17 | . 17 . Fabricators . | . . . Repair Stations . | . . . Recycling Units . | . . . Scanalyzers . | . . . Garrison Access . | . . . Terminal Hacks 8 | . 8 . Level Access Points 1 | . 1 . Alert Level 1 | . 1 . Unreport Threat 3 | . 3 . Locate Traps 2 | . 2 . Maintenance Status 1 | . 1 . Fabricator Hacks . | . . . Repair Station Hacks . | . . . Recycling Unit Hacks . | . . . Scanalyzer . | . . . Garrison Access Hacks . | . . . Unauthorized Hacks . | . . . Terminals . | . . . Fabricators . | . . . Repair Stations . | . . . Recycling Units . | . . . Scanalyzers . | . . . Garrison Access . | . . . Data Cores Recovered . | . . . Used . | . . . Hacking Detections 4 | . 4 . Full Trace Events 1 | . 1 . Feedback Events 1 | . 1 . Corruption 1 | . 1 . Feedback Blocked . | . . . Robot Schematics Acquired . | . . . Robots Built . | . . . Authchips . | . . . Time . | . . . Total Robot Build Rating . | . . . Part Schematics Acquired . | . . . Parts Built . | . . . Authchips . | . . . Time . | . . . Total Part Build Rating . | . . . Parts Repaired . | . . . Time . | . . . Parts Recycled . | . . . Recycled Matter . | . . . Retrieved Matter . | . . . Retrieved Components . | . . . Parts Scanalyzed . | . . . Part Schematics Acquired . | . . . Parts Damaged . | . . . Bothacking | -11 -10 -10 ------------ Run | Yrd Mat Sub Used RIF Installer . | . . . Robots Hacked . | . . . Non-combat . | . . . Combat . | . . . Robot Hacks Applied . | . . . Relay Couplers Released . | . . . Fabnet Peak Effective % . | . . . Robots Rewired . | . . . Allies Hacked . | . . . Hacks Repelled . | . . . Allies | -11 -10 -10 -------- Run | Yrd Mat Sub Total Allies . | . . . Largest Group . | . . . Highest-Rated Group . | . . . Highest-Rated Ally . | . . . Total Orders . | . . . Ally Attacks . | . . . Total Damage . | . . . Kills . | . . . Allies Corrupted . | . . . Allies Melted . | . . . Intel | -11 -10 -10 ------- Run | Yrd Mat Sub Robot Analysis Total . | . . . Derelict Logs Recovered 1 | . . 1 Drone Launches . | . . . Drone Recoveries . | . . . Exploration | -11 -10 -10 ------------- Run | Yrd Mat Sub Turns Passed 3395 | 81 1692 1622 Spaces Moved 1347 | 45 698 604 Core 4 | 4 . . Treads 498 | 41 457 . Legs 845 | . 241 604 Wheels . | . . . Hover . | . . . Flight . | . . . Fastest Speed 50 | 50 160 120 Average Speed 214 | 153 198 237 Slowest Speed 320 | 160 320 260 Overloaded Moves . | . . . Propulsion Burnouts . | . . . Robots Hopped . | . . . Cave-ins Triggered . | . . . Exploration Rate (%) 46 | 4 97 38 Regions Visited 2 Branch Regions 1 Pre-discovered Areas . | . . . Known Exits Taken . | . . . Unknown Exits Taken 2 | 1 1 . Scrap Searched . | . . . Spaces Dug 9 | . 1 8 Terrain Destroyed 9 | . 1 8 Melee 9 | . 1 8 Projectile . | . . . AOE . | . . . Terrain Rammed . | . . . Walls Destroyed . | . . . Machines Disabled . | . . . Actions | -11 -10 -10 --------- Run | Yrd Mat Sub Total 1610 | 54 853 703 Wait 75 | . 46 29 Move 1345 | 44 697 604 Hop . | . . . Pick Up 24 | 4 17 3 Fast Attach 13 | 6 3 4 Attach 5 | . 4 1 Detach 3 | . 1 2 Swap 13 | . 7 6 Drop 9 | . 3 6 Fire 93 | . 73 20 Melee 26 | . 1 25 Ram . | . . . Kick . | . . . Crush 1 | . 1 . Escape Stasis . | . . . Rewire . | . . . Trap . | . . . Miscellaneous 3 | . . 3 Route ------- -11/Scrapyard -10/Materials (discovered 6 exits: *Mat x3 / [*Min x2] / [*Sub]) -10/Subcaves History --------- Turn | Location | Event 8 | -11/Scrapyard | Discovered new exit (range 16) 82 | -11/Scrapyard | Entered Materials 336 | -10/Materials | Build established: Mutant 441 | -10/Materials | Identified exit to Materials 554 | -10/Materials | Discovered new exit (range 11) 752 | -10/Materials | Discovered new exit (range 10) 800 | -10/Materials | Core integrity fell below 50% 1357 | -10/Materials | Discovered new exit (range 5) 1774 | -10/Materials | Entered Subcaves 1860 | -10/Subcaves | Learned Materials trap positions 1866 | -10/Subcaves | A swath of the cavern ceiling suddenly collapsed 1950 | -10/Subcaves | Shifting Twisted Machinery released Sub. Shrapnel Launcher 2205 | -10/Subcaves | Core integrity fell below 20% 3396 | -10/Subcaves | Destroyed by Piercing Trap Last Messages --------------- 02788_ Acquired 5 matter. 02793_ Acquired 28 matter. 02858_ System corrupted: Matter fused (-6). 02902_ System corrupted: Matter fused (-9). 02924_ Acquired 18 matter. 02926_ Acquired 22 matter. 02934_ Acquired Wheel. 03378_ PE-Y2S(R) knocked back. 03380_ Critical hit (Destroy). 03381_ PE-Y2S(R) knocked back. 03381_ PE-Y2S(R) destroyed. 03389_ Triggered Piercing Trap. 03389_ Spikes shoot up from the floor. 03389_ Critical hit (Impale). 03389_ Scrap Shield destroyed. 03389_ Critical hit (Impale). 03389_ Wheel destroyed. 03395_ Acquired 26 matter. 03396_ Triggered Piercing Trap. 03396_ Spikes shoot up from the floor. Map ----- +----------------------------------------------------+ | ???????????????????## #????????????? | | ???????????????????# ##????????????? | | ???????????????????#### #?????????????? | | ??????????????????????## ##????????????? | | ??????????????????????## #????????????? | | ????????????????????### #????????????? | | ???????????????????## #????????????? | | ??????????????????## #????????????? | | ?????????????????## #????????????? | | ????????????????## ##????????????? | | ???????????????## #?????????????? | | ???????????????# #?????????????? | | ???????????????## ##?????????????? | | ????????????????# #??????????????? | | ????????????????# ####??????????????? | | ????????????????# ##?????????????????? | | ????????????????## #??????????????????? | | ????????????????## #??????????????????? | | ????????????????# #??????????????????? | | ????????????????# ##??????????????????? | | ????????????????# ##???????????????????? | | ??????????????### #???????????????????? | | ??????????????# ^ ###??????????????????? | | ??????????????#&! ^ ##?????????????????? | | ??????????????#%%^"% ###???????????????? | | ??????????????#@& #???????????????? | | ??????????????# "" ????????????? | | ??????????????# ^ " "???????????? | | ??????????????## # " " ??????????? | | ???????????????# ## # "" " ??????????? | | ???????????????###? " ""#?"#??????????? | | ???????????????????" #"###?????????????? | | ???????????????????" ###???????????????? | | ???????????????????"##?????????????????? | | ???????????????????????????????????????? | | ???????????????????????????????????????? | | ???????????????????????????????????????? | | ???????????????????????????????????????? | | ???????????????????????????????????????? | | ???????????????????????????????????????? | | ???????????????????????????????????????? | | ???????????????????????????????????????? | | ???????????????????????????????????????? | | ???????????????????????????????????????? | | ???????????????????????????????????????? | | ???????????????????????????????????????? | | ???????????????????????????????????????? | | ???????????????????????????????????????? | | ???????????????????????????????????????? | | ???????????????????????????????????????? | +----------------------------------------------------+ Best States ------------- Heat Dissipation 25 Energy Generation 15 Energy Capacity 250 Matter Stores 300 Matter Capacity 300 Sight Range 16 Terrain Scan Density 10 Armor Coverage 800 Evasion (%) 45 Recoil Reduction 2 Item Schematics ----------------- None Robot Schematics ------------------ None Fabricated ------------ Nothing Alien Tech Used ----------------- None Achievements -------------- None Challenges ------------ None Game ------ Seed HoverContainmentDiverter Manual? 0 Play Time 00:22:07 Cumulative 67.4 hours Start 2024.05.13 @ 18:30:22 End 2024.05.13 @ 20:51:33 Sessions 1 Manual Loads 0 Difficulty Rogue Special Mode None Game No. 104 Rogue 104 Adventurer 0 Explorer 0 Win Type - Total 1 Types 1/0/0/0/0/0/0/0/0 Lore% 32 Gallery% 39 Achievement% 31 Wizard Run 0 Options --------- Layout 1 ASCII 0 Keyboard 1 Movement Numpad Keybinds 0 Fullscreen 1 Font 24/Smallcaps Map View 50x35 Zoom Use 0% Tactical HUD 1 Map Filters NONE Filters NONE Steam 1 RUN: c964ca7f-8378-4f6e-87b8-6cf241bc7d37